Cogmind - Beta 13 @@@ ROGUE MODE // 2024.03.02 @ 23:27:13 Player: Minty Result: Destroyed by Y-45 Defender with Heavy Assault Rifle Performance ------------- Evolutions (0) 0 Regions Visited (2) 400 Robots Destroyed (8) 40 Value Destroyed (156) 156 Prototype IDs (3) 60 Alien Tech Used (0) 0 Bonus (0) 0 TOTAL SCORE: 656 Bonus ------- None Cogmind --------- Core Integrity 0/250 Matter 268/300 Energy 249/250 System Corruption 7% Temperature Cool (0) Movement Rolling (100) Location -10/Mines Parts ------- > --- POWER (1) -------- Ion Engine > --- PROPULSION (2) --- Light Treads Compact Wheel > --- UTILITY (2) ------ Small Storage Unit Core Shielding > --- WEAPON (2) ------- (None) > --- INVENTORY (8) ---- Light Treads Flight Unit Heat Sink Heat Sink Recalibrator Peak State ------------ > --- POWER ------------ Backup Power I > --- PROPULSION ------- Hover Unit Hover Unit > --- UTILITY ---------- Small Storage Unit Core Shielding > --- WEAPON ----------- EM Pulse Gun EM Pulse Gun > --- INVENTORY -------- Ion Engine Light Ion Engine Light Treads Light Treads Aluminum Leg Wheel Compact Wheel Recalibrator [Rating: 8] Favorites ----------- Power Ion Engine Engine Ion Engine Propulsion Hover Unit Treads Light Treads Leg Aluminum Leg Wheel Wheel Hover Unit Hover Unit Flight Unit Flight Unit Utility Small Storage Unit Storage Small Storage Unit Protection Core Shielding Weapon EM Pulse Gun Energy Gun EM Pulse Gun Ballistic Gun Light Assault Rifle Build | -11 -10 -10 ------- Run | Yrd Mat Min Slots Evolved . | . . . Power . | . . . Propulsion . | . . . Utility . | . . . Weapon . | . . . Parts Attached 20 | . 14 6 Power 4 | . 3 1 Engine 4 | . 3 1 Core . | . . . Reactor . | . . . Propulsion 9 | . 6 3 Treads 1 | . . 1 Leg 1 | . 1 . Wheel 2 | . . 2 Hover 2 | . 2 . Flight 3 | . 3 . Utility 2 | . 1 1 Device . | . . . Storage . | . . . Processor . | . . . Hackware . | . . . Protection 2 | . 1 1 Artifact . | . . . Weapon 5 | . 4 1 Energy Gun 4 | . 4 . Energy Cannon . | . . . Ballistic Gun 1 | . . 1 Ballistic Cannon . | . . . Launcher . | . . . Special Weapon . | . . . Impact Weapon . | . . . Slashing Weapon . | . . . Piercing Weapon . | . . . Special Melee Weapon . | . . . Unidentified Prototypes . | . . . Corrupted Parts 3 | . 3 . System Corruption 5 | . 5 . Parts Lost 7 | . 3 4 Power 1 | . . 1 Propulsion 3 | . 1 2 Utility . | . . . Weapon 3 | . 2 1 Highest Loss Streak 3 | . 3 3 To Critical Strikes . | . . . Average Slot Usage (%) 82 | . 87 71 Engine 14 | . 14 14 Leg 5 | . 8 . Wheel 7 | . . 24 Hover 9 | . 14 . Flight 3 | . 4 2 Storage 14 | . 14 14 Protection 10 | . 9 13 Energy Gun 14 | . 21 . Naked Turns . | . . . Heaviest Build 15 | 13 15 11 Greatest Support 26 | 20 20 26 Greatest Overweight (x) 4 | . 4 1 Average Overweight (x) . | . . . Largest Inventory Capacity 8 | 8 8 8 Average Capacity 8 | 8 8 8 Most Carried 8 | 6 8 8 Average Carried 6 | 6 7 5 Final Capacity 8 | 8 8 8 Final Carried 8 | 6 8 5 Class Distribution -------------------- 100% | Mutant Dominant Class ---------------- Mutant | -10/Materials Mutant | -10/Mines Resources | -11 -10 -10 ----------- Run | Yrd Mat Min Matter Collected 372 | 200 136 36 Remotely . | . . . Salvage Created 245 | . 245 . Parts 16 | . 16 . Haulers Intercepted . | . . . Recyclers Shooed . | . . . Parts Field Recycled . | . . . Retrieved Matter . | . . . Parts Self-Destructed . | . . . Prevented . | . . . Kills | -11 -10 -10 ------- Run | Yrd Mat Min Combat Hostiles Destroyed 5 | . 5 . Guns 5 | . 5 . Classes Destroyed 4 | . 4 . Mechanic 1 | . 1 . Watcher 2 | . 2 . Swarmer 3 | . 3 . Grunt 2 | . 2 . Best Kill Streak 4 | . 4 . Combat Bots Only 3 | . 3 . Max Kills in Single Turn 1 | . 1 . Gunslinging . | . . . Exploded . | . . . Melee . | . . . Uniques/NPCs Destroyed . | . . . Combat | -11 -10 -10 -------- Run | Yrd Mat Min Hostile Shots Fired 89 | . 51 38 Missed 25 | . 13 12 Damage Taken 778 | . 428 350 Core 254 | . 138 116 Absorbed by Shields . | . . . Redirected to Shielding 35 | . 17 18 Regen/Repaired (Parts) 11 | . 11 . Core Remaining (%) 100 | 100 . . Volleys Fired 43 | . 32 11 Largest 2 | . 2 1 Hottest 80 | . 80 20 Shots Fired 69 | . 58 11 Gun 69 | . 58 11 Cannon . | . . . Launcher . | . . . Special . | . . . Kinetic 11 | . . 11 Thermal 6 | . 6 . Explosive . | . . . Electromagnetic 52 | . 52 . Robot Hit Streak 5 | . 5 2 Robot Miss Streak 4 | . 4 2 Penetration Max . | . . . Secondary Targets 2 | . 2 . Max Gunslinging Chain 1 | . 1 . Shots Hit Robots 35 | . 30 5 Core Hits 15 | . 12 3 Critical Kills . | . . . Critical Parts Destroyed . | . . . Critical Strikes 1 | . 1 . Corrupt 1 | . 1 . Melee Attacks . | . . . Impact . | . . . Slashing . | . . . Piercing . | . . . Sneak Attacks . | . . . Combat Hostiles . | . . . Follow-up Attacks . | . . . Damage Inflicted 525 | . 485 40 Guns 478 | . 438 40 Cannons . | . . . Explosions 46 | . 46 . Melee . | . . . Ramming 1 | . 1 . Kinetic 40 | . . 40 Thermal 80 | . 80 . Explosive . | . . . Electromagnetic 404 | . 404 . Impact . | . . . Slashing . | . . . Piercing . | . . . Highest Corruption 7 | . 7 7 Average Corruption 5 | . 5 7 Corruption Purged . | . . . Corruption Blocked . | . . . Effects 12 | . 7 5 Message Errors 1 | . 1 . Matter Fused 3 | . 2 1 Heat Flow Errors 3 | . 1 2 Energy Discharges 1 | . . 1 Data Loss (minor) 1 | . 1 . Data Loss (major) 1 | . 1 . Misfires 1 | . 1 . Alerts 1 | . . 1 Overload Shots . | . . . Overflow Damage . | . . . Projectiles . | . . . Explosions . | . . . Melee . | . . . Knockbacks . | . . . Impact . | . . . Kinetic . | . . . Secondary . | . . . Self-Inflicted Damage . | . . . Shots . | . . . Rammed 1 | . 1 . Targets Rammed 1 | . 1 . Kicked . | . . . Crushed . | . . . Highest Temperature 171 | . 171 157 Average Temperature 74 | . 76 65 Received Heat Transfer 396 | . 204 192 Siege Activations . | . . . Robots Corrupted 1 | . 1 . Combat Hostiles . | . . . Parts Fried 2 | . 2 . Impact Corruptions . | . . . Robots Melted . | . . . Combat Hostiles . | . . . Parts Melted . | . . . Heat Transferred 125 | . 125 . Parts Sabotaged . | . . . Parts Stolen . | . . . Parts Stripped . | . . . Power Chain Reactions 1 | . 1 . Alert | -11 -10 -10 ------- Run | Yrd Mat Min Peak Influence 399 | . 399 84 Initial 79 | . . 79 Average 163 | . 205 70 Maximum Alert Level 1 | . 1 . Low Security (%) 54 | 100 34 100 Level 1 45 | . 65 . Level 2 . | . . . Level 3 . | . . . Level 4 . | . . . Level 5 . | . . . High Security . | . . . Max Security . | . . . Squads Dispatched 3 | . 3 . Investigation 3 | . 3 . Extermination . | . . . Reinforcement . | . . . Assault . | . . . Garrison . | . . . Intercept . | . . . Searches Triggered . | . . . Construction Impeded . | . . . Haulers Reinforced . | . . . Active Scanning Responses . | . . . Cargo Convoy Interrupts . | . . . Stealth | -11 -10 -10 --------- Run | Yrd Mat Min Distress Signals . | . . . Communications Jammed . | . . . Distress Signals . | . . . Times Spotted 24 | . 20 4 Peak Tracking Total 3 | . 3 2 Tactical Retreats 4 | . 3 1 Traps | -11 -10 -10 ------- Run | Yrd Mat Min Traps Triggered 1 | . 1 . Indirectly . | . . . Trap Hack Attempts . | . . . Triggered . | . . . Disarmed . | . . . Reprogrammed . | . . . Reused . | . . . Traps Extracted . | . . . Installed . | . . . Triggered . | . . . Machines | -11 -10 -10 ---------- Run | Yrd Mat Min Machines Disabled . | . . . Max in Single Turn . | . . . Machines Repaired . | . . . Machines Dismantled . | . . . Machines Sabotaged . | . . . Overloaded Fab Kills . | . . . Hacking | -11 -10 -10 --------- Run | Yrd Mat Min Machines Accessed 5 | . 5 . Terminals 3 | . 3 . Fabricators . | . . . Repair Stations 1 | . 1 . Recycling Units 1 | . 1 . Scanalyzers . | . . . Garrison Access . | . . . Total Hacks 18 | . 18 . Successful 13 | . 13 . Failed 5 | . 5 . Catastrophic 1 | . 1 . Database Lockouts . | . . . Manual 7 | . 7 . Terminals 10 | . 10 . Fabricators . | . . . Repair Stations 5 | . 5 . Recycling Units 3 | . 3 . Scanalyzers . | . . . Garrison Access . | . . . Terminal Hacks 6 | . 6 . Prototype ID Bank 2 | . 2 . Branch Access Points 1 | . 1 . Alert Level 1 | . 1 . Security Status 1 | . 1 . Recall Investigation 1 | . 1 . Fabricator Hacks . | . . . Repair Station Hacks 3 | . 3 . Scan Component 1 | . 1 . Repair 1 | . 1 . Refit 1 | . 1 . Recycling Unit Hacks 2 | . 2 . Report Inventory 1 | . 1 . Retrieve Components 1 | . 1 . Scanalyzer . | . . . Garrison Access Hacks . | . . . Unauthorized Hacks 2 | . 2 . Terminals 2 | . 2 . Botnet 2 | . 2 . Fabricators . | . . . Repair Stations . | . . . Recycling Units . | . . . Scanalyzers . | . . . Garrison Access . | . . . Data Cores Recovered . | . . . Used . | . . . Hacking Detections 5 | . 5 . Full Trace Events 3 | . 3 . Feedback Events 1 | . 1 . Corruption 1 | . 1 . Feedback Blocked . | . . . Robot Schematics Acquired . | . . . Robots Built . | . . . Authchips . | . . . Time . | . . . Total Robot Build Rating . | . . . Part Schematics Acquired . | . . . Parts Built . | . . . Authchips . | . . . Time . | . . . Total Part Build Rating . | . . . Parts Repaired 1 | . 1 . Time 61 | . 61 . Parts Recycled . | . . . Recycled Matter . | . . . Retrieved Matter . | . . . Retrieved Components 1 | . 1 . Parts Scanalyzed . | . . . Part Schematics Acquired . | . . . Parts Damaged . | . . . Bothacking | -11 -10 -10 ------------ Run | Yrd Mat Min Used RIF Installer . | . . . Robots Hacked . | . . . Non-combat . | . . . Combat . | . . . Robot Hacks Applied . | . . . Relay Couplers Released . | . . . Fabnet Peak Effective % . | . . . Robots Rewired . | . . . Allies Hacked . | . . . Hacks Repelled . | . . . Allies | -11 -10 -10 -------- Run | Yrd Mat Min Total Allies . | . . . Largest Group . | . . . Highest-Rated Group . | . . . Highest-Rated Ally . | . . . Total Orders . | . . . Ally Attacks . | . . . Total Damage . | . . . Kills . | . . . Allies Corrupted . | . . . Allies Melted . | . . . Intel | -11 -10 -10 ------- Run | Yrd Mat Min Robot Analysis Total . | . . . Derelict Logs Recovered 1 | . . 1 Drone Launches . | . . . Drone Recoveries . | . . . Exploration | -11 -10 -10 ------------- Run | Yrd Mat Min Turns Passed 603 | 3 416 184 Spaces Moved 499 | 3 321 175 Core 2 | . 2 . Treads . | . . . Legs 74 | 3 71 . Wheels 170 | . . 170 Hover 103 | . 103 . Flight 150 | . 145 5 Fastest Speed 37 | 120 37 37 Average Speed 78 | 120 72 89 Slowest Speed 250 | 120 250 120 Overloaded Moves . | . . . Propulsion Burnouts . | . . . Robots Hopped 5 | . 5 . Cave-ins Triggered . | . . . Exploration Rate (%) 29 | 2 45 40 Regions Visited 2 Branch Regions 1 Pre-discovered Areas 1 | . . 1 Known Exits Taken 1 | . 1 . Unknown Exits Taken 1 | 1 . . Scrap Searched 1 | . . 1 Spaces Dug . | . . . Terrain Destroyed 3 | . 3 . Melee . | . . . Projectile . | . . . AOE 3 | . 3 . Terrain Rammed . | . . . Walls Destroyed . | . . . Machines Disabled . | . . . Actions | -11 -10 -10 --------- Run | Yrd Mat Min Total 636 | 2 441 193 Wait 62 | . 62 . Move 487 | 2 310 175 Hop 5 | . 5 . Pick Up 6 | . 5 1 Fast Attach 10 | . 9 1 Attach 4 | . . 4 Detach 1 | . 1 . Swap 6 | . 5 1 Drop 11 | . 11 . Fire 43 | . 32 11 Melee . | . . . Ram 1 | . 1 . Kick . | . . . Crush . | . . . Escape Stasis . | . . . Rewire . | . . . Trap . | . . . Miscellaneous . | . . . Route ------- -11/Scrapyard -10/Materials (discovered 3 exits: [*Mat] / *Min x2) -10/Mines History --------- Turn | Location | Event 1 | -11/Scrapyard | Discovered new exit (range 3) 4 | -11/Scrapyard | Entered Materials 267 | -10/Materials | Repaired Corrupted Recalibrator 299 | -10/Materials | Identified exit to Mines 309 | -10/Materials | Build established: Mutant 356 | -10/Materials | Core integrity fell below 50% 363 | -10/Materials | Discovered new exit (range 15) 373 | -10/Materials | Lost 3 parts (1n2w) 420 | -10/Materials | Entered Mines 446 | -10/Mines | Core integrity fell below 20% 475 | -10/Mines | Learned location of Storage (-8) 479 | -10/Mines | Lost 3 parts (1p1n1w) 604 | -10/Mines | Destroyed by Y-45 Defender with Heavy Assault Rifle Last Messages --------------- 00423_ Acquired 4 matter. 00424_ Acquired 10 matter. 00425_ Acquired Lgt. Assault Rifle. 00426_ Acquired 10 matter. 00428_ Acquired 1 matter. 00435_ Acquired 8 matter. 00439_ Critical hit (Burn: +37). 00440_ Lgt. Ion Engine destroyed. 00442_ System corrupted: Heat flow error (+168). 00448_ Lgt. Assault Rifle destroyed. 00464_ System corrupted: Energy discharge (-54). 00475_ Acquired derelict log, extracted data. World map updated: -8/Storage. 00485_ System corrupted: Matter fused (-8). 00514_ System corrupted: IFF burst signal emitted. 00532_ Acquired Heat Sink. 00567_ K-01 Serf collects debris. 00578_ System corrupted: Heat flow error (+143). 00578_ K-01 Serf collects debris. 00595_ Wheel destroyed. Map ----- +----------------------------------------------------+ | | | | | | | | | | | | | | | | | | | | | | | | | | | | | | | | | ??????????????????????????????????????? | | ??????????????????????????????????????? | | ??????????????????????????????????????? | | ???????????????#####??????????????????? | | ??????????????## #??????????????????? | | ??????????????# #???????????????????? | | ?????????????## #????????????????????? | | ????????????## ##???????????????????? | | ????????????# ##??????????????????? | | ????????##"?##@ ##?????????????????? | | ????????#"" # #?????????????????? | | ????????#/! /Y #?????????????????? | | ????????#!! Y #?????????????????? | | ????????#"" # ##????????????????? | | ????????##" ## ##???????????????? | | ???############# #???????????????? | | ???# #???????????????? | | ???# ############ ##???????????????? | | ??## #??????????## ##????????????????? | | ?## ##???????????###?????????????????? | | ?# #???????????????????????????????? | | ?# ####### ##??????????????????????? | | ?# #??????????????????????? | | ?# #?????????????????????? | | ?## ##### #????????????????????? | | ??## #?????? #????????????????????? | | ???# #??????????#????????????????????? | | ??## #???????????????????????????????? | | ?## #????###????????????????????????? | | ?# ##??## ###??????????????????????? | | ?# ##??## ##?????????????????????? | | ?## ##### ##????????????????????? | | ??# """ ### ??????????????? | | ??# """ #?????????????? | +----------------------------------------------------+ Best States ------------- Heat Dissipation 25 Energy Generation 10 Energy Capacity 250 Matter Stores 300 Matter Capacity 300 Sight Range 16 Terrain Scan Density 10 Core Shielding 20 Evasion (%) 62 Item Schematics ----------------- None Robot Schematics ------------------ None Fabricated ------------ Nothing Alien Tech Used ----------------- None Achievements -------------- None Challenges ------------ None Game ------ Seed PhysicsBlastAxe Manual? 0 Play Time 00:05:18 Cumulative 687.9 hours Start 2024.03.02 @ 23:22:47 End 2024.03.02 @ 23:27:13 Sessions 1 Manual Loads 0 Difficulty Rogue Special Mode None Game No. 713 Rogue 438 Adventurer 123 Explorer 152 Win Type - Total 26 Types 20/0/4/1/0/0/0/1/0 Lore% 81 Gallery% 91 Achievement% 76 Wizard Run 0 Options --------- Layout 0 ASCII 0 Keyboard 1 Movement Numpad Keybinds 0 Fullscreen 2 Font 18/SmallcapsGlow Map View 76x50 Zoom Use 0% Tactical HUD 1 Map Filters NONE Filters NONE Steam 1 RUN: 657fb43d-2c22-4f76-b637-4fa2305cab78